[Event "79th Tata Steel Chess 2017-Masters"]
[Site "Wijk aan Zee"]
[Date "2017.01.15"]
[Round "2"]
[White "Harikrishna, Pentala"]
[Black "Adhiban, Baskaran"]
[Result "1-0"]
[ECO "C78"]
[WhiteElo "2766"]
[BlackElo "2653"]
[Annotator "Sagar Shah"]
[PlyCount "85"]
[EventDate "2017.??.??"]
[TimeControl "60"]

1. e4 {[%emt 0:00:00]} e5 {[%emt 0:00:05]} 2. Nf3 {[%emt 0:00:00]} Nc6 {
[%emt 0:00:04]} 3. Bb5 {6 This time Harikrishna chooses the Ruy Lopez over
Guioco Piano. The latter he used successfully to beat Sergey Karjakin at the
Olympiad.} a6 {[%emt 0:00:05]} 4. Ba4 {[%emt 0:00:06]} Nf6 {[%emt 0:00:04]} 5.
O-O {[%emt 0:00:29]} b5 {[%emt 0:00:08]} 6. Bb3 {[%emt 0:00:09]} Bc5 $5 {
1 The Arkhangelsk Variation of the Ruy Lopez which is much more active than
the closed Ruy Lopez, but also riskier.} 7. c3 {326} d6 {[%emt 0:00:05]} 8. d4
{[%emt 0:00:21]} Bb6 {[%emt 0:00:06]} 9. Be3 {236} O-O {[%emt 0:00:09]} (9...
Nxe4 10. Bd5 $18) 10. h3 {86} (10. Nbd2 {is more common.}) 10... exd4 {666
Adhiban has already played this before against Kuzubov in 2011, but he thought
for 11 minutes which means that he wasn't expecting this line.} 11. cxd4 {
[%emt 0:00:23]} Nxe4 {11 Seeing that nothing is wrong with grabbing the pawn,
Adhiban goes ahead.} 12. Bd5 {618 Harikrishna also thought for 10 minutes
recollecting his lines.} Qe8 $1 {[%emt 0:00:05]} 13. Qc2 {[%emt 0:00:28]} Nb4 {
[%emt 0:00:19]} 14. Qxe4 {[%emt 0:00:12]} Qxe4 {[%emt 0:00:03]} 15. Bxe4 {
[%emt 0:00:10]} d5 {2 And the bishop is trapped in a very novel manner.} 16.
Bxh7+ {122} Kxh7 {2 Overall it would seem that the central e4 pawn is much
more important than the h7 pawn. And this is true. Black has a very
comfortable position. But it's a complex middlegame, so both sides have to
play accurately.} 17. Nc3 {175} c6 {1426 23 minutes for the move c6. Adhiban
would have surely been looking at ...Nc2 options. Finally he didn't like them
and continued with this little pawn move.} (17... Nc2 18. Rac1 Nxe3 19. fxe3
Bb7 20. Ne5 {Somehow I feel that the bishops are a tad too passive.}) 18. Rad1
{1329} a5 {1273} 19. a3 {576} Nc2 {345} 20. Rd2 {386} Nxe3 {353} 21. fxe3 {
10 The computers like Black's position because of the bishop pair. Objectively
the position is equal. But with all these imbalances, the situation is rich
and the better player has chances to outplay his opponent.} f6 {188} 22. Rc1 {
[%emt 0:00:26]} Bd7 {[%emt 0:00:53]} 23. Kf2 {117 Hari just makes normal,
natural moves, not worrying about what he is trying to achieve in the position.
If his pieces are on good squares something will turn up. That being said
Adhiban has nothing to worry. His position is at least equal, maybe even
slightly better.} Rae8 {[%emt 0:00:24]} 24. Ne2 {230} Re7 {116} (24... g5 $5
$15) 25. Nf4 {[%emt 0:00:45]} Rfe8 {291} (25... g5 26. Nd3 Kg7 27. Nc5 Bf5 $15)
26. Re2 {159} g5 {[%emt 0:00:27]} 27. Nd3 {[%emt 0:00:25]} Kg7 {134} 28. Nc5 {
601} Bf5 {[%emt 0:00:22]} 29. Ree1 {459} Kg6 {335} (29... Rh8 $1 {Makes sense
in order to prevent g4.} 30. g4 Bc8 {The h3 pawn is weak.} 31. Rh1 Bxc5 $1 32.
dxc5 (32. Rxc5 Bxg4 $15) 32... Kg6 33. Nd4 Bd7 $11 {Black doesn't have any
reali problems.}) 30. Nd2 {128} (30. g4 Bc8 31. h4 $5 Bxg4 32. hxg5 Bxf3 33.
gxf6 Rh7 34. Kxf3 $11) 30... Kg7 {75} 31. Nf3 {98} Kg6 {165 Adhiban must have
felt that Hari would be fine with a draw. After all it's not so easy to make
progress. But Harikrishna fights on.} 32. g4 {180} Bc8 {[%emt 0:00:32]} 33. Nd3
{[%emt 0:00:06]} Bd7 {285} (33... Rc7 $5 {makes sense in order to take on g4
when h4 is played.}) 34. h4 $1 {84 Very alert.} gxh4 {279} 35. Nxh4+ {249} Kg5
{204 The king has to move in. But as we already know, the knight are tricky
creatures. Hence, Black must remain careful.} (35... Kh7 36. Nf5 Bxf5 37. gxf5
Rc7 38. Rh1+ Kg7 39. Rcg1+ $19) 36. Nf3+ {101} Kxg4 {157 Good or bad, this
pawn had to taken.} (36... Kg6 37. g5 $1 fxg5 38. Nde5+ Kf5 39. Rg1 $16) 37.
Rh1 $1 {230 The black king is beginning to feel uncomfortable. Two knights and
two rooks are trying to trap it.} Kf5 {225 Adhiban's king makes a dash.} 38.
Rh5+ {[%emt 0:00:46]} Ke6 {[%emt 0:00:31]} (38... Kg6 39. Nf4+ Kf7 40. Rg1 $16)
39. Rh6 {299} Kf5 $2 {250} (39... Kf7 40. Nf4 (40. Rg1 Bf5 $19) 40... Rg8 41.
Nh5 Rg6 42. Rh7+ Kf8 43. Rh8+ Kf7 $11) 40. Nh4+ {[%emt 0:00:00]} Kg5 {138} (
40... Ke4 41. Rc3 $1 {The threat now is to take on f6.} (41. Ke2 $5 Bxd4 $1 42.
Nf2+ Ke5 43. Nf3+ Kd6 44. Nxd4 Rxe3+ 45. Kd2 $16) 41... Rf7 42. Rh5 {Nf3-d2
looks deadly.} Bg4 43. Kf1 $1 Kxe3 44. Nf2+ Kd2 45. Nxg4 $18) (40... Ke6 41.
Nf4+ Kd6 42. Rxf6+ Kc7 43. Nxd5+ $18) 41. Rg6+ {84} Kxh4 {[%emt 0:00:29]} 42.
Rh1+ {[%emt 0:00:09]} Bh3 {[%emt 0:00:04]} 43. Rg3 {10 Not often do you see
the Lawnmower's mate at such a high level! A very interesting game where
Harikrishna showed that practically he is a stronger player.} 1-0

[Event "79th Tata Steel Chess 2017-Masters"]
[Site "Wijk aan Zee"]
[Date "2017.01.16"]
[Round "3"]
[White "Adhiban, Baskaran"]
[Black "Aronian, Levon"]
[Result "1/2-1/2"]
[ECO "D02"]
[WhiteElo "2653"]
[BlackElo "2780"]
[Annotator "Sagar Shah"]
[PlyCount "75"]
[EventDate "2017.??.??"]
[EventType "tourn"]
[EventCountry "NED"]
[SourceTitle "playchess.com"]
[Source "ChessBase"]
[TimeControl "40/6000+30:20/3000+30:900+30"]

1. d4 {[%emt 0:00:00]} Nf6 {[%emt 0:00:08]} 2. Nf3 {[%emt 0:00:00]} d5 {
[%emt 0:00:07]} 3. Bf4 {16 The London virus is spreading quick! Even Adhiban
is now hit by it!} c5 {[%emt 0:00:21]} 4. e3 {[%emt 0:00:09]} Nc6 {[%emt 0:00:
07]} 5. c3 {358} e6 {[%emt 0:00:09]} 6. Nbd2 {[%emt 0:00:08]} Be7 {[%emt 0:00:
08]} (6... Bd6 7. Bg3 O-O 8. Bb5 {is the main line these days and was used by
Carlsen to beat Anand in the World Rapid.}) 7. Ne5 {82 Adhiban made this move
quickly which meant that he was prepared.} Nd7 {211} 8. Bd3 {68} O-O {495} (
8... Ndxe5 9. dxe5 g5 10. Bg3 h5 $5 {reminds of Spassky-Petrosian.}) 9. Qh5 {
404} f5 {[%emt 0:00:45]} 10. Ndf3 {309} Ndxe5 {1075} 11. Nxe5 {[%emt 0:00:06]}
Nxe5 {[%emt 0:00:42]} 12. Bxe5 {[%emt 0:00:05]} Bd6 {[%emt 0:00:24]} 13. f4 {
636} Bxe5 {122} 14. fxe5 {[%emt 0:00:04]} Bd7 {[%emt 0:00:44]} 15. O-O {430}
Qb6 {[%emt 0:00:54]} 16. Rf2 {304} Bb5 {[%emt 0:00:33]} 17. Bxb5 {607} Qxb5 {
12 The position is around equal. Nothing much going on.} 18. Raf1 {68} Qd3 {708
} 19. Rf3 {[%emt 0:00:41]} Rf7 {227} 20. g4 $5 {116 it's not easy to keep
Adhiban quiet for too long.} Raf8 {243} 21. gxf5 {70} g6 $1 {17 The evaluation
of the position remains the same, but Aronian tries to trick his opponent.} 22.
Qg5 {1359} (22. fxg6 hxg6 23. Qh3 (23. Qg4 Qxf1+ 24. Kxf1 Rxf3+ 25. Kg2 Rf2+
26. Kg3 Kg7 $11) 23... Rxf3 24. Rxf3 Rxf3 25. Qxf3 Qb1+ 26. Qf1 Qxb2 $11) 22...
Rxf5 {237} 23. Rxf5 {[%emt 0:00:10]} exf5 {88 Aronian tries to fight in this
even position, hoping for the young Indian to go wrong.} 24. Qf4 {278} Qc4 {
1283} 25. a3 {306} Qe2 {81} 26. Rf2 {168} Qd1+ {[%emt 0:00:31]} 27. Kg2 {74}
cxd4 {263} 28. cxd4 {[%emt 0:00:20]} (28. exd4 $5) 28... Rc8 {320} 29. Qf3 {
[%emt 0:00:49]} Qb3 {[%emt 0:00:10]} 30. h4 {61} Rc1 {328} 31. h5 {[%emt 0:00:
36]} Re1 {[%emt 0:00:54]} 32. hxg6 {83} hxg6 {[%emt 0:00:15]} 33. Re2 {163} Rc1
{240} 34. Qg3 {[%emt 0:00:36]} Kg7 {[%emt 0:00:10]} 35. Qg5 {196} Qd1 {[%emt 0:
00:14]} 36. Qe7+ {[%emt 0:00:15]} Kh6 {[%emt 0:00:26]} 37. Qh4+ {[%emt 0:00:29]
} Kg7 {[%emt 0:00:05]} 38. Qe7+ {Nothing much happened in this game.
Theoretically Aronian can be happy, and practically Adhiban can be peased with
the result.} 1/2-1/2

[Event "Wijk aan Zee"]
[Site "Wijk aan Zee"]
[Date "2017.01.16"]
[Round "3"]
[White "Eljanov, Pavel"]
[Black "Harikrishna, Pentala"]
[Result "1/2-1/2"]
[ECO "A17"]
[WhiteElo "2755"]
[BlackElo "2766"]
[Annotator "Sagar Shah"]
[PlyCount "83"]
[EventDate "2017.??.??"]
[EventType "tourn"]
[EventCountry "NED"]
[SourceTitle "playchess.com"]
[Source "ChessBase"]
[TimeControl "40/6000+30:20/3000+30:900+30"]

1. Nf3 {[%emt 0:00:00]} Nf6 {[%emt 0:00:23]} 2. c4 {[%emt 0:00:55]} c5 {
[%emt 0:00:17]} 3. Nc3 {[%emt 0:00:25]} d5 {19 Harikrishna likes to play the
Semi-Tarrasch. Soon we reach something similar.} 4. cxd5 {[%emt 0:00:45]} Nxd5
{[%emt 0:00:09]} 5. e3 {202} e6 {123} 6. Bc4 {252} (6. d4 {would be the e3
variation of the Semi Tarrasch.}) 6... Nc6 {144} 7. O-O {[%emt 0:00:48]} Be7 {
381} 8. Qe2 {509} O-O {344 What Hari does is nice to learn from. He just
develops his pieces and gets his king to safety.} 9. Rd1 {[%emt 0:00:39]} Nb6 {
257} 10. Bb5 {966} Bd7 {304 Once again simple development. No flashy business.}
11. d4 {402} cxd4 {109} 12. exd4 $1 {7 Accepting the Isolani is the correct
way to play.} (12. Nxd4 Nxd4 13. Rxd4 Bxb5 14. Qxb5 Qc7 {And Black has
absolutely no problems.}) 12... Nb4 {[%emt 0:00:29]} 13. Bxd7 {[%emt 0:00:06]}
Qxd7 {[%emt 0:00:09]} 14. Ne5 {[%emt 0:00:07]} Qe8 $1 {423 A very nice idea.
Hari realizes that sooner or later he will play f7-f5 and hence the queen is
well placed on e8.} 15. a3 {150} N4d5 {130} 16. Rd3 {[%emt 0:00:22]} f5 {
742 After this move the e5 square and e6 pawn become weak, but White has no
real kingside attack.} 17. Bd2 {1320} Bf6 {144} 18. Re1 {101} Rc8 {357} 19. Rg3
{201} Qe7 {602} 20. Bh6 {1112} Kh8 {297} 21. Bc1 {[%emt 0:00:11]} Kg8 {218
Hari has a comfortable position, but with the leader and the black pieces, he
is fine with a draw.} 22. Bh6 {[%emt 0:00:53]} Kh8 {147} 23. Bc1 {[%emt 0:00:
05]} Kg8 {66} 24. Rh3 {55 Eljanov shows great fighting spirit, although
objectively this decision is incorrect because only Black can have chances to
fight for advantage.} Bxe5 {408} 25. Qxe5 {[%emt 0:00:09]} Rc6 {[%emt 0:00:19]}
26. Qe2 {318} (26. Nxd5 Nxd5 27. Qxd5 $4 exd5 28. Rxe7 Rxc1+ $19) 26... Rfc8 {
228 Black's harmony keeps improving.} 27. Bd2 {[%emt 0:00:04]} Nxc3 {118} 28.
bxc3 {69} (28. Bxc3 Nd5 $17 {is clearly better for Black.}) 28... Nd5 {[%emt 0:
00:25]} 29. a4 {609} Qf7 {339} 30. Rg3 {152} Nxc3 {288} 31. Rxc3 {[%emt 0:00:
04]} Rxc3 {[%emt 0:00:08]} 32. Bxc3 {[%emt 0:00:07]} Rxc3 {[%emt 0:00:08]} 33.
h3 {[%emt 0:00:03]} Rc6 {91 Black has pinched a pawn and White has to play
carefully, in order to not let Black consolidate.} 34. Qe5 $1 {[%emt 0:00:23]}
Qd7 {202} (34... h6 {looked more human.} 35. Qb8+ Kh7 36. Qxa7 Ra6 37. Qc5 Rxa4
38. Qe5 Ra6 39. Rc1 {White has compensation and the game should most probably
end in a draw.}) 35. Qb8+ {85} Kf7 {[%emt 0:00:56]} 36. Qxa7 {[%emt 0:00:27]}
Ra6 {[%emt 0:00:15]} 37. Qb8 {[%emt 0:00:49]} Rxa4 {143} 38. Rb1 {[%emt 0:00:
40]} b5 {[%emt 0:00:18]} 39. Rxb5 {[%emt 0:00:54]} Ra8 {229} 40. Qe5 {[%emt 0:
00:00]} Rd8 {102} 41. Rb6 {180} Qd5 {304} 42. Qxd5 {115} (42. Qxd5 Rxd5 43. Rb4
{Theoretically Black is better but there is no way to win the d4 pawn and
White will hold with ease.}) 1/2-1/2

[Event "Wijk aan Zee"]
[Site "Wijk aan Zee"]
[Date "2017.01.16"]
[Round "3"]
[White "Wei, Yi"]
[Black "Nepomniachtchi, Ian"]
[Result "1-0"]
[ECO "B96"]
[WhiteElo "2706"]
[BlackElo "2767"]
[Annotator "Sagar Shah"]
[PlyCount "149"]
[EventDate "2017.??.??"]
[EventType "tourn"]
[EventCountry "NED"]
[SourceTitle "playchess.com"]
[Source "ChessBase"]
[TimeControl "40/6000+30:20/3000+30:900+30"]

1. e4 {[%emt 0:00:00]} c5 {[%emt 0:00:06]} 2. Nf3 {[%emt 0:00:00]} d6 {[%emt 0:
00:04]} 3. d4 {[%emt 0:00:00]} cxd4 {[%emt 0:00:04]} 4. Nxd4 {[%emt 0:00:00]}
Nf6 {[%emt 0:00:04]} 5. Nc3 {[%emt 0:00:00]} a6 {[%emt 0:00:04]} 6. Bg5 {
[%emt 0:00:08]} e6 {[%emt 0:00:08]} 7. f4 {[%emt 0:00:06]} h6 {[%emt 0:00:04]}
8. Bh4 {[%emt 0:00:07]} Qb6 {[%emt 0:00:06]} 9. a3 {64} Nbd7 {[%emt 0:00:15]}
10. Be2 {138} e5 {141} 11. Nf5 {2125} g6 {444} 12. Bf2 {470} Nc5 {912} 13. b4 {
224} gxf5 {[%emt 0:00:10]} 14. O-O {905} Nfxe4 {325} 15. Nxe4 {[%emt 0:00:14]}
fxe4 {[%emt 0:00:05]} 16. bxc5 {136} dxc5 {[%emt 0:00:45]} 17. fxe5 {296} Be6 {
148} 18. Rb1 {733} Qc6 {600} 19. Bg4 {171} b5 {345} 20. Bh4 {[%emt 0:00:25]}
Rg8 {174} 21. Bxe6 {75} Qxe6 {[%emt 0:00:06]} 22. Rf6 {[%emt 0:00:24]} Qg4 {
[%emt 0:00:59]} 23. Qd2 {[%emt 0:00:13]} Be7 {302} 24. Rf4 {434} Qd7 {245} 25.
Qxd7+ {[%emt 0:00:08]} Kxd7 {[%emt 0:00:04]} 26. e6+ $3 {9 Quite a deep move
and very easily found by Wei Yi.} (26. Rxf7 Rae8 $11) 26... fxe6 {128} (26...
Kxe6 27. Rxe4+ $18) 27. Rf7 {[%emt 0:00:04]} Rg5 {[%emt 0:00:45]} (27... Rae8
28. Rd1+ $18 {Now there is no Ke6.}) 28. Rd1+ {113} Ke8 {[%emt 0:00:55]} 29.
Rh7 {[%emt 0:00:04]} b4 {63} 30. a4 {688} c4 {61} 31. Bxg5 {125} hxg5 {[%emt 0:
00:19]} 32. Rh8+ {108} Bf8 {[%emt 0:00:07]} 33. Rf1 {[%emt 0:00:21]} Ke7 {
[%emt 0:00:05]} 34. Rh7+ {[%emt 0:00:02]} Kd6 {[%emt 0:00:06]} 35. Rh8 {
[%emt 0:00:05]} Ke7 {[%emt 0:00:05]} 36. Rh7+ {[%emt 0:00:43]} Kd6 {[%emt 0:00:
06]} 37. Rhf7 {[%emt 0:00:06]} Bh6 {[%emt 0:00:33]} 38. Rd1+ {97} Ke5 {269} 39.
Rc7 {[%emt 0:00:28]} c3 {[%emt 0:00:45]} 40. Kf2 {[%emt 0:00:00]} g4 {206} 41.
Rc5+ {622} Kf6 {153} 42. Ke2 {[%emt 0:00:10]} Rb8 {465} 43. Rb1 {91} Rd8 {418}
44. Rf1+ {[%emt 0:00:44]} Ke7 {76} 45. Rc7+ {63} Kd6 {[%emt 0:00:10]} 46. Rc4 {
617} Ke7 {144} 47. Rd1 {70} Rb8 {[%emt 0:00:12]} 48. Rdd4 {300} b3 {[%emt 0:00:
49]} 49. cxb3 {[%emt 0:00:11]} Rxb3 {[%emt 0:00:56]} 50. Rc7+ {433} Kf6 {
[%emt 0:00:25]} 51. Rxe4 {[%emt 0:00:05]} Rb2+ {423} 52. Kd3 {[%emt 0:00:06]}
Rd2+ {[%emt 0:00:50]} 53. Kxc3 {[%emt 0:00:06]} Kf5 {[%emt 0:00:25]} 54. Re1 {
139} Rxg2 {[%emt 0:00:06]} 55. Rc5+ {[%emt 0:00:03]} Kf6 {89} 56. Re4 {[%emt 0:
00:04]} Rxh2 {60} 57. Rxg4 {[%emt 0:00:06]} a5 {194} 58. Kd3 {265} Rd2+ {169}
59. Ke4 {[%emt 0:00:08]} Re2+ {[%emt 0:00:39]} 60. Kf3 {[%emt 0:00:00]} Re3+ {
[%emt 0:00:48]} 61. Kf2 {[%emt 0:00:27]} Re5 {124} 62. Rg6+ {574} Kxg6 {
[%emt 0:00:09]} 63. Rxe5 {[%emt 0:00:05]} Bd2 {[%emt 0:00:06]} 64. Rxe6+ {
[%emt 0:00:54]} Kf7 {[%emt 0:00:24]} 65. Re4 {[%emt 0:00:13]} Kf6 {150} 66. Ke2
{[%emt 0:00:05]} Bc3 {77} 67. Rc4 {[%emt 0:00:14]} Be5 {900} 68. Rc5 {[%emt 0:
00:06]} Ke6 {[%emt 0:00:04]} 69. Rxa5 {[%emt 0:00:06]} Bc7 {[%emt 0:00:53]} 70.
Rb5 {[%emt 0:00:06]} Kd6 {[%emt 0:00:05]} 71. Kd3 {[%emt 0:00:11]} Kc6 {
[%emt 0:00:16]} 72. Kc4 {[%emt 0:00:04]} Bb6 {[%emt 0:00:50]} 73. a5 {[%emt 0:
00:05]} Ba7 {[%emt 0:00:19]} 74. a6 {[%emt 0:00:06]} Bb6 {[%emt 0:00:03]} 75.
Rb3 {[%emt 0:00:08]} 1-0

[Event "Wijk aan Zee"]
[Site "Wijk aan Zee"]
[Date "2017.01.16"]
[Round "3"]
[White "So, Wesley"]
[Black "Rapport, Richard"]
[Result "1-0"]
[ECO "E18"]
[WhiteElo "2808"]
[BlackElo "2702"]
[Annotator "Sagar Shah"]
[PlyCount "95"]
[EventDate "2017.??.??"]
[EventType "tourn"]
[EventCountry "NED"]
[SourceTitle "playchess.com"]
[Source "ChessBase"]
[TimeControl "40/6000+30:20/3000+30:900+30"]

1. Nf3 {[%emt 0:00:00]} Nf6 {[%emt 0:00:40]} 2. g3 {[%emt 0:00:00]} b6 {
[%emt 0:00:50]} 3. d4 {90} Bb7 {[%emt 0:00:21]} 4. c4 {69} e6 {[%emt 0:00:14]}
5. Bg2 {[%emt 0:00:05]} Be7 {[%emt 0:00:33]} 6. O-O {63} O-O {[%emt 0:00:06]}
7. Nc3 {[%emt 0:00:16]} Ne4 {[%emt 0:00:13]} 8. Bd2 {[%emt 0:00:04]} Bf6 {
[%emt 0:00:13]} 9. Rc1 {95} Nxd2 {[%emt 0:00:16]} 10. Qxd2 {[%emt 0:00:07]} d6
{[%emt 0:00:04]} 11. d5 {165} e5 {[%emt 0:00:20]} 12. e4 {178} Nd7 {[%emt 0:00:
24]} 13. h4 {216} a5 {[%emt 0:00:17]} 14. Bh3 {110} Nc5 {125} 15. Kg2 {198} Bc8
{68} 16. Rh1 {71} Bxh3+ {162} 17. Rxh3 {[%emt 0:00:08]} Qd7 {60} 18. Nh2 {1011}
h5 {135} 19. f3 {1317} g6 {889} 20. g4 {[%emt 0:00:08]} Kh7 {281} 21. Rh1 {428}
Rg8 {866} 22. Qd1 {650} Bg7 {405} 23. Nf1 {[%emt 0:00:46]} Bh6 {[%emt 0:00:49]}
24. Kf2 {65} Bc1 $3 {80} 25. Ng3 $2 {288} (25. b3 Bb2 26. Nb5 f5 {White is
under pressure, but why to give up the b2 pawn?}) 25... Bxb2 {297} 26. Nb5 {
[%emt 0:00:04]} Bc1 $1 {107 The bishop must return!} 27. gxh5 {107} Bf4 {206}
28. Nc3 {[%emt 0:00:48]} f5 {868} 29. hxg6+ {143} Rxg6 {[%emt 0:00:14]} 30.
Nxf5 {149} Rag8 {[%emt 0:00:35]} 31. Kf1 {[%emt 0:00:25]} b5 $1 {642} (31...
Rg2 32. Ne2 $11) 32. cxb5 {196} (32. Nxb5 $2 Rg2 {There is no Re2 now.} 33. Nc3
Rd2 $19) 32... Rg2 {[%emt 0:00:31]} 33. Qb1 {[%emt 0:00:01]} (33. Ne2 Qxb5 $19)
33... Qf7 $6 {134} (33... Rd2 $1 34. Rg1 Rxg1+ 35. Kxg1 Qe8 $19) 34. Ne2 {
[%emt 0:00:41]} Qg6 $4 {99 Rapport misses a simple knight fork.} 35. Ne7 $1 {
286} Rf2+ {485} 36. Kxf2 {[%emt 0:00:06]} Qg2+ {[%emt 0:00:03]} 37. Ke1 {
[%emt 0:00:03]} Rg3 {[%emt 0:00:08]} 38. Rxg3 {551} Qxh1+ {73} 39. Rg1 {
[%emt 0:00:03]} Qxf3 {[%emt 0:00:43]} 40. Nxf4 {[%emt 0:00:00]} Qe3+ {729} 41.
Ne2 {157} Nd3+ {[%emt 0:00:12]} 42. Qxd3 {490} Qxd3 {[%emt 0:00:03]} 43. Ng8 {
[%emt 0:00:07]} Qf3 {[%emt 0:00:57]} 44. h5 {118} Kh8 {[%emt 0:00:02]} 45. Rg6
{66} Qh1+ {101} 46. Kd2 {[%emt 0:00:14]} Qxe4 {[%emt 0:00:44]} 47. Nf6 {
[%emt 0:00:41]} Qb4+ {[%emt 0:00:08]} 48. Ke3 {[%emt 0:00:26]} 1-0